{"text_format":"1","workbook":"xlsx","n_sheets":3,"sheets":["ADJIL","ADJIL_pieaugums","ADJIL_dinamika"],"not_rendered":{"charts":1,"images":2,"macros":0,"external_links":0,"defined_names":0,"comments":0,"pivot_tables":0},"unopened":[],"bounds":{"document_bytes":16777216,"sheet_cells":100000,"rows_first":2000,"rows_last":500,"rows_between":2000,"halvings":0,"cell_chars":16384,"cell_head_chars":4096},"cells_cut":0,"cells_raw":0,"read":"whole","date_system":"1900"}

{"sheet":"ADJIL","index":0,"n_rows":16,"n_cols":10,"rows_kept":16,"cut":false,"hidden":false,"merged":[[1,0,1,9],[3,0,4,1],[3,2,3,5],[3,6,3,9],[15,0,15,9],[5,0,5,1],[6,0,8,0],[9,0,9,1],[11,0,11,9],[12,0,12,9],[14,0,14,9],[13,0,13,9]]}
[]
["Aizsardzības un drošības jomas iepirkumu likuma kārtībā publicēto paziņojumu skaits un kopējā līgumcena (2017. gada 4.ceturksnis)"]
[]
[null,null,"Virs ES līgumcenu sliekšņa",null,null,null,"Zem ES līgumcenu sliekšņa"]
[null,null,"Izsludināto iepirkumu skaits*","Paziņojumi par grozījumiem  skaits**","Rezultātu paziņojumu skaits***","Rezultātos norādītā līgumcena (EUR bez PVN)","Izsludināto iepirkumu skaits*","Paziņojumi par grozījumiem skaits**","Rezultātu paziņojumu skaits***","Rezultātos norādītā līgumcena (EUR bez PVN)"]
["4. ceturksnis"]
[null,"oktobris",2,0,0,0,3,0,1,371700]
[null,"novembris",0,0,1,440000,1,0,0,0]
[null,"decembris",0,1,3,7913356,2,0,2,81283]
["Kopā",null,{"$f":"SUM(C7:C9)","v":2},1,4,8353356,6,0,3,{"$f":"SUM(J7:J9)","v":452983}]
[]
["* “Izsludināto iepirkumu skaits”  veidojas no šāda veida publikāciju veidlapām: Paziņojums par līgumu aizsardzības un drošības jomā."]
["** “Paziņojumi par grozījumiem skaits”  veidojas no  šāda veida publikāciju veidlapām: Paziņojums par grozījumiem, iepirkuma procedūras izbeigšanu vai pārtraukšanu aizsardzības un drošības jomā"]
["*** “Rezultātu paziņojumu skaits”  veidojas no  šāda veida publikāciju veidlapām: Paziņojums par iepirkuma procedūras rezultātiem aizsardzības un drošības jomā"]
["Paziņojumi “Zem ES līgumcenu sliekšņa” - paziņojumi ar paredzamo līgumcenas slieksni no 28 000 EUR līdz 417 999  EUR precēm un pakalpojumiem un no 170 000 EUR līdz 5 224 999 EUR būvdarbiem;"]
["Paziņojumi “Virs ES līgumcenu sliekšņa” - paziņojumi ar paredzamo līgumcenu precēm un pakalpojumiem no 418 000 EUR un virs un būvdarbiem no 5 225 000 EUR un virs."]

{"sheet":"ADJIL_pieaugums","index":1,"n_rows":18,"n_cols":7,"rows_kept":18,"cut":false,"hidden":false,"merged":[[17,0,17,7],[10,1,10,3],[10,4,10,6],[8,0,8,7],[16,0,16,7]]}
[]
[]
[]
[]
[]
[]
[]
[]
["Aizsardzības un drošības jomas iepirkumu likuma kārtībā publicēto paziņojumu skaita un publikācijās norādītās līgumcenas pieaugums (attiecībā pret 2016. gada 4. ceturksni)"]
[]
[null,"Virs ES līgumcenu sliekšņa",null,null,"Zem ES līgumcenu sliekšņa"]
[null,"Izsludināto iepirkumu skaits*","Rezultātu paziņojumu skaits**","Rezultātos norādītā līgumcena (EUR bez PVN)","Izsludināto iepirkumu skaits*","Rezultātu paziņojumu skaits**","Rezultātos norādītā līgumcena (EUR bez PVN)"]
["2016. gada 4. ceturksnis",4,2,875372,2,3,300041]
["2017. gada 4. ceturksnis",{"$f":"ADJIL!C10","v":2},{"$f":"ADJIL!E10","v":4},{"$f":"ADJIL!F10","v":8353356},{"$f":"ADJIL!G10","v":6},{"$f":"ADJIL!I10","v":3},{"$f":"ADJIL!J10","v":452983}]
["Īpatsvara (%) pieaugums 4. ceturksnī",{"$f":"(B14-B13)/B13","v":-0.5},{"$f":"(C14-C13)/C13","v":1},{"$f":"(D14-D13)/D13","v":8.5426355880699862},{"$f":"(E14-E13)/E13","v":2},{"$f":"(F14-F13)/ABS(F13)","v":0},{"$f":"(G14-G13)/ABS(G13)","v":0.50973700260964339}]
[]
["* “Izsludināto iepirkumu skaits”  veidojas no šāda veida publikāciju veidlapām: Paziņojums par līgumu aizsardzības un drošības jomā."]
["** “Rezultātu paziņojumu skaits”  veidojas no  šāda veida publikāciju veidlapām: Paziņojums par iepirkuma procedūras rezultātiem aizsardzības un drošības jomā"]

{"sheet":"ADJIL_dinamika","index":2,"n_rows":56,"n_cols":7,"rows_kept":56,"cut":false,"hidden":false,"merged":[[10,0,10,12]]}
[]
[]
[]
[]
[]
[]
[]
[]
[]
[]
["Aizsardzības un drošības jomas iepirkumu likuma kārtībā publicēto rezultātu paziņojumu skaita un publikācijās norādītās līgumcenas dinamika"]
[]
[]
[]
[]
[]
[]
[]
[]
[]
[]
[]
[]
[]
[]
[]
[]
[]
[]
[]
[]
[]
[]
[]
[]
[]
[]
[]
[]
[null,null,null,"Rezultātu paziņojumu skaits iepirkumiem virs ES līgumcenu sliekšņa","Rezultātos norādītā līgumcena virs ES sliekšņa iepirkumiem (milj.eiro)","Rezultātu paziņojumu skaits iepirkumiem zem ES līgumcenu sliekšņa","Rezultātos norādītā līgumcena zem ES sliekšņa iepirkumiem (milj.eiro)"]
[null,null,"2014/I",1,2.0788039999999999,2,1.0068729999999999]
[null,null,"2014/II",1,1.1078950000000001,4,0.21509800000000001]
[null,null,"2014/III",0,0,2,0.43509300000000001]
[null,null,"2014/IV",2,3.5791559999999998,3,0.594939]
[null,null,"2015/I",1,0.44057099999999999,8,2.2231839999999998]
[null,null,"2015/II",2,0.70433400000000002,4,0.77431899999999998]
[null,null,"2015/III",5,12.064209,2,0.308533]
[null,null,"2015/IV",4,11.5,3,0.5]
[null,null,"2016/I",2,69.7,1,0.2]
[null,null,"2016/II",3,6.2622210000000003,3,0.52001299999999995]
[null,null,"2016/III",2,1.43289,4,2.9823970000000002]
[null,null,"2016/IV",2,0.87537200000000004,3,0.300041]
[null,null,"2017/I",3,4.1750090000000002,1,3.2779999999999997E-2]
[null,null,"2017/II",8,12.1,5,0.9]
[null,null,"2017/III",5,4.0933080000000004,1,4.5836000000000002E-2]
[null,null,"2017/IV",4,8.3533559999999998,3,0.45298300000000002]